bitfinex/quotes_SOLUSD_20240718
["timestamp","ask_amount","ask_price","bid_price","bid_amount"]
[1721262169393,6.4021,156.2,156.16,1.28055714]
[1721262169968,0.32823697,156.25,156.16,1.28055714]
[1721262170293,20.32823697,156.25,156.17,0.34]
[1721262170471,20.0,156.24,156.17,0.34]
[1721262170674,6.4016,156.21,156.17,0.34]
[1721262171062,6.4021,156.2,156.17,0.34]
[1721262171258,6.4021,156.2,156.16,0.34]
[1721262174385,6.4017,156.21,156.16,6.7436]
[1721262175887,6.4021,156.2,156.16,0.34]
[1721262176076,6.4013,156.22,156.16,1.62043744]
[1721262176386,6.4011,156.23,156.18,6.4028]
[1721262176696,6.4012,156.22,156.19,1.62030477]
[1721262177064,6.4012,156.22,156.19,0.34]
[1721262177284,6.4016,156.21,156.18,0.34]
[1721262177589,6.4013,156.22,156.18,0.34]
[1721262177984,6.4013,156.22,156.18,8.02310607]
[1721262178370,6.4017,156.21,156.18,0.34]
[1721262178568,16.0016,156.24,156.17,15.787]
[1721262179181,6.4025,156.19,156.17,15.787]
[1721262180493,6.4028,156.18,156.17,15.787]
[1721262180800,16.0016,156.24,156.17,15.787]
[1721262180987,45.0,156.23,156.13,15.2316]
[1721262182196,6.4028,156.18,156.13,21.6363]
[1721262182384,6.4028,156.18,156.14,0.17]
[1721262182591,6.4028,156.18,156.14,0.34]
[1721262183699,6.4025,156.19,156.14,6.7444]
[1721262183908,38.4581,156.24,156.16,6.4036]
[1721262184404,6.67531408,156.26,156.16,16.0083]
[1721262184583,6.4007,156.24,156.17,1.62033346]
[1721262184901,6.4007,156.24,156.19,6.4024]
[1721262185079,6.4008,156.23,156.18,23.68967852]
[1721262185273,6.4008,156.23,156.19,0.34]
[1721262186767,6.4004,156.25,156.2,1.28030289]
[1721262186972,6.4004,156.24,156.19,16.63500289]
[1721262187376,6.4004,156.24,156.19,23.03710289]
[1721262187695,6.4,156.25,156.2,6.402]
[1721262188096,6.4,156.25,156.21,0.34]
[1721262188672,6.4004,156.24,156.21,0.34]
[1721262188903,6.4004,156.24,156.2,0.34]
[1721262189607,15.9976,156.28,156.19,15.0147]
[1721262189777,6.4013,156.22,156.19,15.0147]
[1721262190501,15.9994,156.26,156.19,15.0147]
[1721262190708,45.0,156.25,156.15,43.5929]
[1721262190909,16.0015,156.24,156.15,21.1796]
[1721262191292,45.0,156.23,156.15,21.1796]
[1721262191476,45.0,156.23,156.15,15.1035]
[1721262191690,6.403,156.18,156.15,15.1035]
[1721262192276,6.4025,156.19,156.15,15.1035]
[1721262192591,6.4019,156.21,156.15,15.1035]
[1721262192794,6.4019,156.21,156.16,6.4035]
[1721262192984,6.4012,156.22,156.17,7.68377273]
[1721262193187,15.9984,156.27,156.18,1.28040376]
[1721262193400,6.4011,156.23,156.18,1.28040376]
[1721262193696,6.4011,156.23,156.19,0.34]
[1721262193904,6.4004,156.24,156.19,8.02265792]
[1721262194703,6.4013,156.22,156.19,0.34]
[1721262196309,6.4,156.25,156.2,6.4019]
[1721262196510,6.4,156.25,156.21,0.34]
[1721262196675,15.9976,156.28,156.18,12.9511]
[1721262196996,6.4017,156.21,156.19,0.34]
[1721262197391,6.4013,156.22,156.19,0.34]
[1721262197923,6.4016,156.21,156.18,6.5483]
[1721262198088,6.4021,156.2,156.16,16.009]
[1721262198287,6.4021,156.2,156.17,0.17]
[1721262198609,6.4024,156.19,156.15,21.601]
[1721262199211,16.0015,156.24,156.15,21.601]
[1721262199415,45.0,156.23,156.15,28.0049]
[1721262199710,6.4024,156.2,156.15,28.0049]
[1721262201385,6.4024,156.19,156.15,21.601]
[1721262202228,6.4021,156.2,156.15,21.601]
[1721262202513,6.4016,156.22,156.17,6.4032]
[1721262202702,6.4016,156.21,156.18,1.280413]
[1721262203412,42.69259446,156.27,156.19,1.28039079]
[1721262203585,6.4008,156.23,156.19,1.28039079]
[1721262204002,6.4,156.25,156.2,6.4019]
[1721262204212,6.4,156.25,156.21,0.17]
[1721262204586,15.9975,156.28,156.2,0.17]
[1721262204789,6.4008,156.23,156.2,0.34]
[1721262205017,6.4003,156.25,156.2,0.34]
[1721262205197,6.4003,156.25,156.2,1.62009309]
[1721262205394,15.9975,156.28,156.2,0.34]
[1721262205598,20.0,156.27,156.2,0.34]
[1721262207214,6.4013,156.22,156.2,0.34]
[1721262207408,6.4013,156.22,156.2,0.17]
[1721262207595,6.4013,156.22,156.19,0.34]
[1721262208102,5.9013,156.22,156.19,0.34]
[1721262210700,5.9013,156.22,156.18,0.34]
[1721262211007,20.0,156.27,156.18,0.34]
[1721262211008,6.4016,156.21,156.18,0.34]
[1721262211406,6.4013,156.22,156.18,1.62027422]
[1721262211721,15.9993,156.26,156.18,18.02307422]
[1721262211722,6.4008,156.23,156.18,18.02307422]
[1721262212311,6.4012,156.22,156.18,11.62027422]
[1721262213720,15.9993,156.26,156.18,18.02287422]
[1721262213721,6.4008,156.23,156.18,18.02287422]
[1721262213898,6.4008,156.23,156.19,45.0]
[1721262214100,6.4008,156.23,156.2,0.34]
[1721262214718,6.4008,156.23,156.2,1.62013552]
[1721262215520,6.4003,156.25,156.2,8.02203552]
[1721262215826,6.4004,156.24,156.2,1.62013552]
[1721262216206,6.4008,156.23,156.2,1.62013552]
[1721262217727,6.4004,156.25,156.21,15.8961]
[1721262217915,6.3999,156.26,156.22,0.34]
[1721262218115,6.3999,156.26,156.22,1.61993345]
[1721262218625,6.4,156.25,156.22,1.61993345]
[1721262220127,6.4004,156.24,156.22,1.61993345]
[1721262220905,6.4,156.25,156.22,1.61993345]
[1721262221840,6.4,156.25,156.22,0.34]
[1721262224830,6.4005,156.24,156.22,0.34]
[1721262225422,6.4008,156.23,156.22,0.17]
[1721262225619,6.4012,156.22,156.21,15.8961]
[1721262225822,6.4018,156.21,156.17,15.052]
[1721262226952,6.402,156.2,156.17,15.052]
[1721262227254,6.4028,156.18,156.13,22.4034]
[1721262228324,6.4029,156.18,156.13,15.9986]
[1721262228834,6.4024,156.19,156.14,6.4044]
[1721262229024,63.7179,156.25,156.14,6.4044]
[1721262229221,6.4024,156.2,156.15,1.28063323]
[1721262229437,6.4024,156.2,156.14,6.4044]
[1721262229639,6.4024,156.2,156.15,0.34]
[1721262229843,6.4026,156.19,156.15,1.62063293]
[1721262230552,6.403,156.18,156.15,1.62063293]
[1721262230982,6.403,156.18,156.15,0.34]
[1721262231248,6.403,156.18,156.14,0.34]
[1721262232878,6.4024,156.19,156.14,8.02507332]
[1721262233137,6.4021,156.2,156.14,8.02507332]
[1721262233544,6.6057,156.26,156.17,6.4032]
[1721262233746,6.6057,156.26,156.16,16.0091]
[1721262233747,6.4005,156.24,156.18,8.02275344]
[1721262234120,16.32935115,156.27,156.18,1.62035344]
[1721262234323,16.32935115,156.27,156.18,1.62034506]
[1721262235267,6.4013,156.22,156.18,1.62034506]
[1721262236567,20.0,156.26,156.18,1.62034506]
[1721262236568,6.4007,156.24,156.19,17.85074855]
[1721262236747,20.0,156.26,156.19,17.85074855]
[1721262236748,6.4008,156.23,156.2,0.34]
[1721262236945,6.4012,156.22,156.2,0.34]
[1721262238250,6.4008,156.23,156.2,0.34]
[1721262238471,6.4008,156.23,156.2,1.62017885]
[1721262238840,6.4012,156.22,156.2,1.62017885]
[1721262239866,6.4016,156.21,156.2,0.34]
[1721262240368,6.4013,156.22,156.2,0.34]
[1721262240551,6.4009,156.23,156.2,0.34]
[1721262241861,6.4009,156.23,156.2,1.62014828]
[1721262242067,6.4004,156.24,156.2,11.62014828]
[1721262242444,6.4008,156.23,156.2,11.62014828]
[1721262242660,6.4008,156.23,156.2,10.34]
[1721262242857,6.4008,156.23,156.2,0.34]
[1721262243058,6.4012,156.22,156.2,0.34]
[1721262244873,6.4016,156.21,156.2,0.34]
[1721262245057,6.4016,156.21,156.2,0.17]
[1721262245665,6.4013,156.22,156.2,0.17]
[1721262248550,6.4001,156.25,156.2,6.402]
[1721262248859,6.4299,156.3,156.21,1.62008808]
[1721262248860,6.3995,156.27,156.21,1.62008808]
[1721262249058,6.3995,156.27,156.22,16.1081]
[1721262249262,6.3995,156.27,156.23,1.61989191]
[1721262249458,6.3995,156.27,156.24,1.27989076]
[1721262250051,6.3988,156.28,156.25,0.17]
[1721262250246,16.09375115,156.33,156.25,1.61977009]
[1721262250557,15.99,156.35,156.25,1.44977009]
[1721262250772,15.99,156.35,156.26,0.17]
[1721262251269,15.99,156.35,156.26,1.27968003]
[1721262251444,6.3983,156.29,156.27,0.34]
[1721262251639,6.398,156.3,156.27,0.34]
[1721262251857,6.398,156.3,156.27,1.61967661]
[1721262252463,6.3983,156.29,156.27,1.61967661]
[1721262252966,6.3983,156.29,156.27,0.34]
[1721262253141,6.3983,156.29,156.28,0.17]
[1721262253344,6.3983,156.29,156.27,1.27964452]
[1721262253562,6.3983,156.29,156.28,0.17]
[1721262254463,15.99,156.35,156.28,0.17]
[1721262254673,6.3983,156.29,156.28,0.17]
[1721262256565,6.3983,156.29,156.28,0.17]
[1721262256744,6.3987,156.28,156.27,1.27964452]
[1721262256944,5.80874739,156.36,156.22,16.1081]
[1721262257152,22.4125,156.3,156.2,6.1755]
[1721262257350,65.0,156.29,156.2,6.1755]
[1721262257750,6.4009,156.23,156.21,1.28013887]
[1721262258153,6.4009,156.23,156.2,6.1755]
[1721262258342,6.4012,156.22,156.18,16.258]
[1721262258767,16.0008,156.25,156.18,16.258]
[1721262259255,16.0008,156.25,156.16,6.4565]
[1721262259457,16.0031,156.22,156.14,15.106]
[1721262259666,6.4031,156.18,156.14,15.106]
[1721262260671,6.4029,156.18,156.14,15.106]
[1721262261060,6.4029,156.18,156.15,0.17]
[1721262261373,6.4029,156.18,156.15,0.34]
[1721262262161,6.4024,156.2,156.15,1.62067853]
[1721262262363,54.69613065,156.25,156.15,1.62067853]
[1721262262364,6.4016,156.21,156.15,8.02467853]
[1721262262568,6.4016,156.21,156.15,6.744]
[1721262263467,16.0001,156.25,156.16,55.0]
[1721262263468,6.4012,156.22,156.16,55.0]
[1721262263660,6.4012,156.22,156.17,6.7431]
[1721262264366,6.4012,156.22,156.17,0.34]
[1721262264756,6.4018,156.21,156.17,0.34]
[1721262265165,6.402,156.2,156.17,0.34]
[1721262266680,6.4017,156.21,156.17,0.34]
[1721262267180,6.4013,156.22,156.17,6.7432]
[1721262267368,6.4009,156.23,156.18,6.4028]
[1721262267564,16.0001,156.25,156.19,0.34]
[1721262267767,6.4016,156.21,156.19,0.34]
[1721262268163,6.4014,156.22,156.19,0.34]
[1721262268677,6.4014,156.22,156.18,0.34]
[1721262268883,6.4016,156.21,156.18,0.34]
[1721262269182,6.4016,156.21,156.19,0.34]
[1721262269477,6.4016,156.21,156.17,0.34]
[1721262271770,6.694383,156.27,156.18,32.3618]
[1721262271960,15.997,156.28,156.19,1.62010565]
[1721262272560,40.37610094,156.29,156.21,16.4016]
[1721262272561,6.3996,156.26,156.21,16.4016]
[1721262272767,6.3996,156.26,156.22,0.34]
[1721262273281,6.3996,156.26,156.22,1.61993808]
[1721262273457,6.3996,156.26,156.22,53.02103808]
[1721262273878,6.3992,156.27,156.22,53.02103808]
[1721262274080,15.9943,156.31,156.22,53.02103808]
[1721262274276,6.3992,156.27,156.23,6.4008]
[1721262274473,6.3992,156.27,156.24,1.61981842]
[1721262275885,15.9908,156.34,156.25,11.27978495]
[1721262276103,6.3982,156.3,156.26,0.34]
[1721262276266,6.3982,156.3,156.26,45.34]
[1721262277589,6.3975,156.32,156.27,27.25307015]
[1721262277882,15.9881,156.37,156.28,0.34]
[1721262278086,15.9881,156.37,156.28,1.61942998]
[1721262278087,6.3974,156.32,156.28,1.61942998]
[1721262278672,15.9881,156.37,156.28,1.61942998]
[1721262278673,6.3975,156.31,156.28,1.61942998]
[1721262280411,6.3971,156.32,156.28,46.61942998]
[1721262280588,6.3975,156.31,156.28,46.61942998]
[1721262281374,6.3972,156.32,156.28,46.61942998]
[1721262282289,6.3975,156.31,156.28,46.61942998]
[1721262282492,6.398,156.3,156.28,45.34]
[1721262283177,6.398,156.3,156.28,0.34]
[1721262283370,6.398,156.3,156.28,0.17]
[1721262283570,6.398,156.3,156.25,12.6689]
[1721262283571,6.3983,156.29,156.25,6.269]
[1721262283783,6.3983,156.29,156.26,0.17]
[1721262284383,15.9903,156.35,156.26,0.17]
[1721262284384,6.3979,156.3,156.26,0.17]
[1721262284703,6.3979,156.3,156.26,1.44962649]
[1721262284899,15.9903,156.35,156.27,0.17]
[1721262285075,15.9903,156.35,156.27,46.44943046]
[1721262285277,15.9903,156.35,156.28,0.17]
[1721262285572,6.3978,156.31,156.27,0.17]
[1721262286197,6.3978,156.31,156.27,1.44957994]
[1721262286401,6.3978,156.31,156.28,0.17]
[1721262287999,6.3968,156.33,156.28,0.17]
[1721262288296,6.3964,156.34,156.28,10.17]
[1721262288486,6.3967,156.33,156.29,7.84767271]
[1721262288686,6.3963,156.34,156.3,1.4493758]
[1721262288992,6.3963,156.34,156.31,0.17]
[1721262289170,6.3963,156.34,156.31,1.44928806]
[1721262289369,6.3963,156.34,156.32,0.17]
[1721262289675,6.3959,156.35,156.32,0.17]
[1721262290899,15.9871,156.38,156.32,0.17]
[1721262290900,6.3963,156.34,156.32,0.17]
[1721262291288,15.9871,156.38,156.32,0.17]
[1721262291478,38.453,156.42,156.34,10.0]
[1721262291684,15.9835,156.42,156.35,1.61888453]
[1721262291881,6.3934,156.41,156.36,24.06657927]
[1721262292095,22.11929854,156.45,156.37,0.34]
[1721262292293,15.9824,156.43,156.37,0.34]
[1721262292596,6.3946,156.38,156.37,0.34]
[1721262292805,6.3943,156.39,156.37,0.34]
[1721262293779,6.3947,156.38,156.34,6.3962]
[1721262293986,6.3952,156.37,156.33,10.0]
[1721262294292,6.3946,156.39,156.35,0.17]
[1721262294487,6.3946,156.39,156.35,1.44892845]
[1721262294684,6.3939,156.4,156.36,0.17]
[1721262295285,6.3935,156.41,156.36,51.5654]
[1721262295488,6.3935,156.41,156.37,0.17]
[1721262296095,6.3935,156.41,156.37,1.44872318]
[1721262296300,6.3935,156.41,156.38,0.17]
[1721262296682,6.3929,156.43,156.38,1.448685]
[1721262296884,6.3922,156.44,156.39,16.5642]
[1721262297088,6.3922,156.44,156.4,1.44846239]
[1721262297391,6.3922,156.44,156.4,7.84226239]
[1721262297690,6.3922,156.44,156.41,0.17]
[1721262297899,6.3922,156.44,156.41,1.44843826]
[1721262298106,6.3922,156.44,156.42,0.17]
[1721262299211,6.3709,156.51,156.42,10.17]
[1721262299384,6.3709,156.51,156.43,0.17]
[1721262299985,6.3913,156.47,156.43,0.17]
[1721262300393,6.3918,156.45,156.43,0.17]
[1721262300603,6.3915,156.46,156.43,0.17]
[1721262300885,6.3915,156.46,156.42,45.34]
[1721262301099,6.3915,156.46,156.42,55.34]
[1721262301706,6.3918,156.45,156.42,45.34]
[1721262302100,6.3918,156.45,156.42,0.34]
[1721262303108,6.3915,156.46,156.42,10.34]
[1721262303905,6.3919,156.45,156.42,10.34]
[1721262304210,6.3919,156.45,156.42,0.34]
[1721262304507,6.3908,156.48,156.43,6.3925]
[1721262304713,6.3908,156.48,156.44,1.61813023]
[1721262305101,6.391,156.47,156.44,1.61813023]
[1721262306112,6.3896,156.51,156.45,24.16839926]
[1721262306438,6.3896,156.51,156.46,63.00906985]
[1721262306590,6.3896,156.51,156.47,1.27785717]
[1721262306790,6.3896,156.51,156.48,0.34]
[1721262306991,15.9683,156.56,156.48,10.34]
[1721262307200,15.9683,156.56,156.49,45.0]
[1721262307489,15.9683,156.56,156.5,0.34]
[1721262307912,6.3885,156.53,156.5,0.34]
[1721262308102,15.9683,156.56,156.5,0.34]
[1721262309491,6.389,156.52,156.5,0.34]
[1721262310018,6.3886,156.53,156.5,0.34]
[1721262311096,15.9683,156.56,156.46,25.9776]
[1721262311296,6.3898,156.5,156.47,0.17]
[1721262311699,6.3894,156.51,156.47,0.17]
[1721262311905,6.389,156.52,156.47,6.5609]
[1721262312314,6.3893,156.51,156.47,0.17]
[1721262312492,6.3893,156.51,156.47,45.34]
[1721262313122,6.3889,156.52,156.48,1.27785556]
[1721262313306,6.3889,156.52,156.49,1.61776986]
[1721262313515,6.3889,156.52,156.49,1.27776986]
[1721262313706,6.3886,156.53,156.5,0.34]
[1721262315218,6.3882,156.54,156.5,0.34]
[1721262315435,6.3882,156.54,156.5,1.61774374]
[1721262317918,6.3878,156.55,156.5,56.61774374]
[1721262319300,6.3878,156.55,156.51,6.3893]
[1721262319621,6.3878,156.55,156.46,10.0]
[1721262319622,15.9701,156.55,156.46,10.0]
[1721262319823,6.3909,156.48,156.45,23.1209]
[1721262320022,6.3902,156.49,156.45,23.1209]
[1721262320522,6.3898,156.5,156.45,29.5126]
[1721262320728,20.0,156.54,156.46,10.0]
[1721262321233,20.0,156.55,156.46,25.9777]
[1721262321526,6.3889,156.52,156.48,6.3904]
[1721262321913,6.3889,156.52,156.49,0.34]
[1721262322109,6.3895,156.51,156.48,0.34]
[1721262322409,15.9713,156.53,156.47,0.34]
[1721262322618,6.3906,156.48,156.45,16.4989]
[1721262322820,15.974,156.51,156.45,16.4989]
[1721262323024,20.0,156.5,156.41,22.283]
[1721262323901,20.0,156.5,156.42,6.393]
[1721262324102,6.3906,156.48,156.43,6.7325]
[1721262324516,6.3911,156.47,156.43,0.17]
[1721262324702,6.3914,156.46,156.43,0.17]
[1721262325007,6.3914,156.46,156.42,0.17]
[1721262325416,6.391,156.47,156.42,7.8413167]
[1721262325724,6.391,156.47,156.43,0.17]
[1721262325938,6.3915,156.46,156.43,0.17]
[1721262326104,6.3915,156.46,156.42,0.34]
[1721262326606,6.3909,156.48,156.43,6.3924]
[1721262326930,6.3909,156.48,156.44,0.34]
[1721262327228,6.3909,156.48,156.44,1.61818422]
[1721262327429,6.3902,156.49,156.44,8.01028422]
[1721262327618,6.3895,156.51,156.45,1.27811095]
[1721262327925,54.62662214,156.57,156.45,1.27811095]
[1721262327926,6.3892,156.52,156.47,6.3907]
[1721262328140,16.29813697,156.55,156.46,16.318]
[1721262328300,6.39,156.5,156.46,16.318]
[1721262328926,6.3894,156.51,156.47,1.27799997]
[1721262329218,6.3898,156.5,156.48,0.17]
[1721262329421,6.3898,156.5,156.46,16.148]
[1721262329603,6.3898,156.5,156.47,0.17]
[1721262330322,6.3898,156.5,156.46,0.34]
[1721262330505,6.3894,156.51,156.46,6.7313]
[1721262330709,6.389,156.52,156.47,7.66881785]
[1721262330906,6.389,156.52,156.48,0.17]
[1721262331431,6.3894,156.51,156.48,0.17]
[1721262331628,6.3889,156.52,156.48,1.44792288]
[1721262331831,6.3889,156.52,156.48,0.17]
[1721262332130,6.39,156.5,156.48,0.17]
[1721262333516,6.3893,156.52,156.48,0.17]
[1721262333719,6.3893,156.52,156.47,0.17]
[1721262334237,6.3895,156.51,156.47,0.17]
[1721262334630,15.9718,156.53,156.46,0.17]
[1721262334821,6.3907,156.48,156.46,0.34]
[1721262335020,6.391,156.47,156.43,6.3923]
[1721262335323,20.0,156.52,156.42,25.9823]
[1721262335324,6.3914,156.46,156.42,15.9823]
[1721262335833,6.3918,156.45,156.41,28.6761]
[1721262336228,6.3915,156.46,156.42,1.2784514]
[1721262336413,6.391,156.47,156.43,1.27825287]
[1721262336614,6.3906,156.48,156.41,48.2658]
[1721262336823,6.3906,156.48,156.43,6.3925]
[1721262337209,6.391,156.47,156.44,0.17]
[1721262337511,6.3907,156.48,156.43,8.0107635]
[1721262338223,6.3907,156.48,156.44,6.3921]
[1721262338822,6.3907,156.48,156.43,6.7326]
[1721262339141,6.3902,156.49,156.44,6.3922]
[1721262339310,0.32823697,156.54,156.46,10.0]
[1721262339512,22.1417,156.57,156.47,1.61785717]
[1721262339735,22.1417,156.57,156.47,0.34]
[1721262339940,6.3889,156.52,156.47,8.00876667]
[1721262340148,15.97,156.55,156.47,0.34]
[1721262340325,6.3894,156.51,156.47,8.00883971]
[1721262340640,6.3894,156.51,156.47,1.61793971]
[1721262340831,6.3894,156.51,156.47,0.34]
[1721262342636,6.389,156.52,156.47,8.00869702]
[1721262343546,6.388,156.55,156.5,6.3894]
[1721262343738,16.29473697,156.58,156.51,8.00662311]
[1721262343739,6.3874,156.56,156.51,8.00662311]
[1721262344240,6.3877,156.55,156.51,0.34]
[1721262344448,6.3877,156.55,156.52,1.27759724]
[1721262344758,6.3874,156.56,156.52,1.27759724]
[1721262344915,6.3874,156.56,156.53,0.34]
[1721262345112,6.3874,156.56,156.5,10.0]
[1721262345440,6.3881,156.54,156.49,22.3647]
[1721262345735,6.3877,156.55,156.5,10.34]
[1721262345948,6.3877,156.55,156.51,45.0]
[1721262346125,6.3873,156.56,156.52,0.34]
[1721262346440,6.3873,156.56,156.52,1.61752488]
[1721262346938,6.3873,156.56,156.52,0.34]
[1721262347322,6.3878,156.55,156.52,0.34]
[1721262347637,6.3876,156.56,156.52,0.34]
[1721262348140,15.9658,156.59,156.48,21.9857]
[1721262348338,6.3885,156.53,156.49,1.27775976]
[1721262348643,6.3885,156.53,156.48,28.3759]
[1721262348941,6.3885,156.53,156.48,28.3762]
[1721262348942,6.3886,156.53,156.48,28.3762]
[1721262349618,6.3886,156.53,156.49,0.34]
[1721262349836,20.0,156.58,156.49,6.7301]
[1721262350032,6.3882,156.54,156.49,16.7301]
[1721262350332,6.3885,156.53,156.49,6.7301]
[1721262350543,6.3881,156.54,156.49,6.7301]
[1721262351931,6.3881,156.54,156.5,1.27768623]
[1721262352133,6.3881,156.54,156.51,0.34]
[1721262352339,6.3881,156.54,156.51,1.61765519]
[1721262352543,6.3878,156.55,156.51,1.61765519]
[1721262352915,6.3874,156.56,156.51,0.34]
[1721262353120,6.3874,156.56,156.51,55.34]
[1721262353338,6.3864,156.59,156.54,6.3879]
[1721262353546,6.3864,156.59,156.55,1.27737126]
[1721262354537,6.3865,156.58,156.56,0.17]
[1721262354843,0.32823697,156.63,156.56,0.34]
[1721262355052,6.386,156.6,156.56,0.34]
[1721262355835,6.3861,156.59,156.56,0.34]
[1721262356530,6.3857,156.6,156.56,0.34]
[1721262357526,6.3853,156.61,156.56,8.0043834]
[1721262357735,20.0,156.6,156.56,8.0043834]
[1721262358444,6.3853,156.61,156.56,8.0043834]
[1721262359342,6.3853,156.61,156.57,55.0]
[1721262359556,6.3848,156.63,156.58,1.61698554]
[1721262359741,6.3848,156.63,156.58,8.00328554]
[1721262360047,0.8081502,156.64,156.59,45.0]
[1721262360252,0.8081502,156.64,156.6,0.34]
[1721262360436,6.3849,156.62,156.6,0.34]
[1721262360952,6.3845,156.63,156.6,0.34]
[1721262361125,6.3852,156.61,156.6,0.34]
[1721262361327,0.8081502,156.64,156.55,22.3513]
[1721262361529,6.3868,156.58,156.55,22.3513]
[1721262361727,6.3861,156.59,156.55,22.3513]
[1721262361950,6.386,156.6,156.55,28.7389]
[1721262362145,6.386,156.6,156.56,17.66442816]
[1721262362338,6.386,156.6,156.56,11.27712816]
[1721262363045,6.385,156.62,156.57,6.3868]
[1721262363230,0.8081502,156.64,156.58,56.2769289]
[1721262363432,0.8081502,156.64,156.59,6.7259]
[1721262363433,6.3845,156.63,156.59,6.7259]
[1721262363628,6.3845,156.63,156.6,1.27684692]
[1721262363842,6.3845,156.63,156.61,1.27684239]
[1721262364258,6.3848,156.62,156.61,1.27684239]
[1721262364446,6.3848,156.62,156.61,0.34]
[1721262364829,6.3845,156.63,156.61,0.34]
[1721262365145,6.3848,156.62,156.61,0.34]
[1721262366230,0.8081502,156.64,156.61,0.34]
[1721262366428,0.8081502,156.64,156.62,0.17]
[1721262366638,0.8081502,156.64,156.62,18.04287624]
[1721262366847,0.8081502,156.64,156.63,0.17]
[1721262368144,6.3845,156.63,156.61,15.8479]
[1721262368348,0.8081502,156.64,156.61,15.8479]
[1721262368349,7.1922502,156.64,156.62,1.27677943]
[1721262368546,7.1922502,156.64,156.61,15.8479]
[1721262368854,0.8081502,156.64,156.62,10.0]
[1721262369633,0.8081502,156.64,156.63,0.34]
[1721262370533,0.8081502,156.64,156.63,53.00087582]
[1721262370832,0.8081502,156.64,156.63,46.61647582]
[1721262371053,0.8081502,156.64,156.63,51.7244]
[1721262371231,0.8081502,156.64,156.63,53.00086881]
[1721262371833,0.8081502,156.64,156.63,51.7244]
[1721262372458,0.8081502,156.64,156.63,53.00082085]
[1721262373062,0.8081502,156.64,156.63,45.34]
[1721262373845,0.8081502,156.64,156.63,51.7244]
[1721262374242,0.8081502,156.64,156.63,53.00089459]
[1721262374761,0.8081502,156.64,156.63,51.7244]
[1721262375134,0.8081502,156.64,156.63,53.00072084]
[1721262375341,0.8081502,156.64,156.63,51.7244]
[1721262376749,0.8081502,156.64,156.63,53.00077688]
[1721262377067,0.8081502,156.64,156.62,32.3461]
[1721262377448,7.1925502,156.64,156.61,15.8479]
[1721262377653,0.8081502,156.64,156.57,16.1953]
[1721262377869,6.3858,156.6,156.57,16.1953]
[1721262378166,0.8081502,156.64,156.57,16.1953]
[1721262378167,6.3864,156.59,156.57,16.1953]
[1721262378364,6.3857,156.6,156.57,16.1953]
[1721262378536,0.8081502,156.64,156.57,16.1953]
[1721262378743,20.8081502,156.64,156.58,10.0]
[1721262378941,6.3845,156.63,156.58,16.3861]
[1721262379140,20.8081502,156.64,156.57,32.1617]
[1721262379369,0.8081502,156.64,156.57,32.1617]
[1721262379571,6.3845,156.63,156.58,6.3864]
[1721262379868,6.3845,156.63,156.58,16.3864]
[1721262380067,6.3845,156.63,156.59,0.34]
[1721262381142,6.3849,156.62,156.59,0.34]
[1721262381348,6.3856,156.61,156.58,0.34]
[1721262381583,6.3857,156.6,156.58,0.34]
[1721262381762,0.8081502,156.64,156.58,0.34]